bitfinex/quotes_ETHUSD_20251011
["timestamp","ask_amount","ask_price","bid_price","bid_amount"]
[1760169664309,0.4734,3769.0,3768.5,2.65355853]
[1760169664514,0.4734,3768.9,3768.3,2.65367054]
[1760169664716,0.4734,3768.9,3767.4,3.69]
[1760169664916,2.65348879,3768.7,3767.5,2.65428002]
[1760169665127,0.4734,3768.8,3767.4,3.69]
[1760169665128,0.4734,3768.6,3767.4,3.69]
[1760169665539,0.4734,3768.5,3767.6,0.002]
[1760169665724,0.4542,3769.5,3767.6,0.002]
[1760169666040,0.4542,3769.5,3768.4,2.65363677]
[1760169666205,0.001,3769.7,3768.2,0.1689]
[1760169666553,0.001,3769.7,3769.1,2.65314328]
[1760169666848,0.001,3769.7,3768.3,2.65371653]
[1760169666849,0.001,3769.7,3769.3,2.65297338]
[1760169667009,0.001,3769.7,3768.6,2.65345194]
[1760169667010,0.001,3769.7,3768.6,0.6336]
[1760169667216,0.001,3769.7,3769.3,2.65300389]
[1760169667435,0.001,3769.7,3768.6,0.6336]
[1760169667633,0.001,3769.7,3769.3,2.65295557]
[1760169667940,0.4552,3769.7,3768.2,0.1689]
[1760169668347,0.4552,3769.7,3768.6,2.65344449]
[1760169668530,0.4542,3769.6,3768.6,2.65344449]
[1760169668907,0.001,3769.7,3768.2,0.1689]
[1760169669459,0.4542,3769.6,3767.9,3.11955412]
[1760169669616,0.4542,3769.6,3768.7,2.65341576]
[1760169669810,0.4542,3769.6,3767.9,0.4656]
[1760169670017,0.4542,3769.6,3768.6,2.65345325]
[1760169670211,0.4542,3769.6,3768.7,2.65342893]
[1760169670935,0.001,3769.7,3767.4,7.38]
[1760169670936,1.92,3769.0,3767.4,7.38]
[1760169671243,1.92,3769.0,3767.4,11.26429586]
[1760169671244,0.4542,3768.9,3767.4,11.26429586]
[1760169671419,0.132,3767.7,3767.6,2.68275166]
[1760169671741,0.132,3767.7,3767.6,3.12180957]
[1760169672348,0.132,3767.7,3767.6,0.002]
[1760169673348,0.5862,3767.7,3767.6,0.002]
[1760169673532,0.132,3767.7,3767.6,0.002]
[1760169673848,0.132,3767.7,3767.6,2.65620957]
[1760169674031,0.132,3767.7,3767.6,2.68275166]
[1760169674229,0.5862,3767.7,3767.6,0.002]
[1760169674433,0.132,3767.7,3767.6,0.002]
[1760169675226,0.4542,3768.2,3767.6,0.002]
[1760169675856,1.92,3768.7,3767.6,0.002]
[1760169676152,0.001,3769.7,3768.1,0.1689]
[1760169676326,0.001,3769.7,3769.3,2.653001]
[1760169676523,0.001,3769.7,3769.4,2.67944761]
[1760169676743,0.001,3769.7,3769.6,2.65280135]
[1760169677325,0.001,3769.7,3769.3,2.65301233]
[1760169677525,0.001,3769.7,3769.6,2.65280135]
[1760169677750,0.001,3769.7,3769.6,2.67932936]
[1760169678129,0.001,3769.7,3769.6,2.65280135]
[1760169678325,0.001,3769.7,3769.6,3.75200135]
[1760169679548,0.001,3769.7,3769.6,3.75739717]
[1760169679885,0.001,3769.7,3769.6,3.77852936]
[1760169680376,0.001,3769.7,3769.6,3.75200135]
[1760169681829,0.001,3769.7,3769.6,2.65280135]
[1760169682254,0.001,3769.7,3769.2,2.65306708]
[1760169682457,0.001,3769.7,3769.6,2.65280135]
[1760169682834,0.001,3769.7,3768.9,2.5536]
[1760169683039,0.001,3769.7,3769.6,2.65280135]
[1760169683359,0.001,3769.7,3769.6,3.11840135]
[1760169683733,0.001,3769.7,3769.6,5.67200135]
[1760169684132,0.001,3769.7,3769.6,2.65280135]
[1760169685077,0.001,3769.7,3768.9,5.03888621]
[1760169685078,0.001,3769.7,3769.5,2.65286476]
[1760169685234,0.001,3769.7,3769.6,2.65280135]
[1760169685433,0.4552,3769.7,3768.9,2.65328686]
[1760169685655,0.4552,3769.7,3768.8,2.6533602]
[1760169685965,0.001,3769.7,3768.9,0.4656]
[1760169686262,0.001,3769.7,3769.6,2.65280135]
[1760169686559,0.001,3769.7,3769.2,2.6530748]
[1760169686870,0.001,3769.7,3769.4,2.65288266]
[1760169687068,0.001,3769.7,3768.5,0.002]
[1760169687266,0.001,3769.7,3769.4,1.23]
[1760169687565,0.4542,3769.6,3769.4,1.23]
[1760169687861,0.4542,3769.5,3769.4,1.23]
[1760169688558,0.4542,3769.5,3769.4,2.46]
[1760169688980,0.001,3769.7,3769.4,2.46]
[1760169689165,0.4542,3769.5,3769.4,2.46]
[1760169689360,0.001,3769.7,3769.4,2.46]
[1760169689972,0.4542,3769.6,3769.4,3.69]
[1760169690175,0.001,3769.7,3769.4,3.69]
[1760169690378,0.001,3769.7,3769.4,6.34288784]
[1760169690683,0.001,3769.7,3769.4,3.69]
[1760169691062,0.4542,3769.6,3769.4,3.69]
[1760169691268,0.4542,3769.5,3769.4,3.69]
[1760169691570,0.001,3769.7,3769.4,3.69]
[1760169691742,0.4542,3769.6,3769.4,3.69]
[1760169691945,0.001,3769.7,3769.4,4.92]
[1760169692270,0.4542,3769.6,3769.4,4.92]
[1760169692441,0.001,3769.7,3769.4,4.92]
[1760169692636,0.001,3769.7,3769.6,2.65280135]
[1760169693257,0.001,3769.7,3769.6,3.75200135]
[1760169695750,0.001,3769.7,3769.6,3.88400135]
[1760169696146,0.001,3769.7,3769.6,3.91052936]
[1760169697061,0.001,3769.7,3769.6,3.88400135]
[1760169699173,0.001,3769.7,3769.6,5.80400135]
[1760169699382,0.001,3769.7,3769.6,3.88400135]
[1760169700560,0.001,3770.3,3770.2,3.28597918]
[1760169700748,0.001,3770.3,3770.2,3.41797918]
[1760169700955,0.001,3770.3,3770.2,3.88797918]
[1760169701651,0.001,3770.8,3770.4,3.28583848]
[1760169701867,0.001,3770.8,3770.4,5.33783848]
[1760169702087,0.001,3770.8,3770.4,5.80783848]
[1760169703167,0.001,3770.8,3770.4,5.67583848]
[1760169703623,0.001,3770.8,3770.4,3.75583848]
[1760169703974,0.001,3770.8,3770.4,3.12223848]
[1760169704603,0.001,3770.8,3770.4,3.75583848]
[1760169705100,0.001,3770.8,3770.4,2.65223848]
[1760169707408,0.001,3770.8,3770.4,3.75583848]
[1760169709573,0.001,3770.8,3770.4,3.28583848]
[1760169710202,0.001,3770.8,3770.4,3.75583848]
[1760169710577,0.001,3770.8,3770.4,2.65223848]
[1760169710777,0.001,3770.8,3770.4,3.75583848]
[1760169712109,0.001,3770.8,3770.4,3.78236086]
[1760169712898,0.001,3770.8,3770.4,5.70236086]
[1760169713077,0.001,3770.8,3770.4,5.80783848]
[1760169714586,1e-08,3770.9,3770.8,5.20555714]
[1760169714786,1.0,3771.9,3771.8,3.28485404]
[1760169714986,1.0,3771.9,3771.8,3.88685404]
[1760169715186,1.0,3771.9,3771.8,3.75485404]
[1760169715791,3.78785002,3775.0,3772.6,3.28429183]
[1760169716013,4.11106362,3775.0,3772.6,3.75429183]
[1760169716187,1.462,3775.0,3772.6,3.75429183]
[1760169716393,0.462,3774.6,3772.6,3.75429183]
[1760169716587,1.0,3775.0,3772.6,3.75429183]
[1760169716788,0.462,3774.4,3772.6,3.75429183]
[1760169717400,1.92,3774.1,3772.6,3.75429183]
[1760169717611,0.462,3774.4,3772.6,3.75429183]
[1760169717828,1.92,3774.1,3772.6,3.75429183]
[1760169718421,2.382,3774.1,3772.6,3.12069183]
[1760169718620,1.92,3773.7,3772.6,3.12069183]
[1760169719319,1.92,3773.7,3772.6,3.75429183]
[1760169720760,1.92,3773.7,3772.6,3.28429183]
[1760169721027,1.92,3774.1,3772.6,3.75429183]
[1760169721826,1.001,3772.7,3772.6,3.12069183]
[1760169722125,1.001,3772.7,3772.6,3.75429183]
[1760169723527,1.001,3772.7,3772.6,5.67429183]
[1760169725093,1.001,3772.7,3772.6,5.80629183]
[1760169725997,1.001,3772.7,3772.6,3.08559183]
[1760169726800,1.001,3772.7,3771.2,2.65163383]
[1760169726801,1.001,3772.7,3772.0,0.4349]
[1760169727397,1.001,3772.7,3772.4,2.65077602]
[1760169727602,1.001,3772.7,3771.9,0.2173]
[1760169727802,1.001,3772.7,3772.3,2.65089332]
[1760169728003,1.001,3772.7,3771.9,0.2173]
[1760169728004,1.001,3772.7,3772.6,2.65069183]
[1760169728305,1.001,3772.7,3772.6,3.08559183]
[1760169728497,1.001,3772.7,3772.6,3.71919183]
[1760169729538,0.59721671,3773.4,3773.3,2.65020009]
[1760169729844,0.59721671,3773.4,3772.6,0.4349]
[1760169729845,0.59721671,3773.4,3773.0,2.65040053]
[1760169730045,0.59721671,3773.4,3773.1,0.4349]
[1760169730336,0.59721671,3773.4,3773.1,3.08517248]
[1760169730631,0.59721671,3773.4,3772.1,0.4349]
[1760169730849,1.05751671,3773.4,3771.6,0.4349]
[1760169731348,1.92,3773.2,3771.6,0.4349]
[1760169731543,1.05751671,3773.4,3771.6,2.65139463]
[1760169731544,0.4603,3773.1,3771.6,2.65139463]
[1760169731703,1.92,3772.7,3771.3,2.65157701]
[1760169731904,0.4603,3772.6,3771.2,2.65167162]
[1760169732112,0.4603,3772.5,3771.2,2.65167162]
[1760169732356,0.4603,3772.4,3771.0,2.65180513]
[1760169732555,0.41571268,3772.9,3771.1,0.4349]
[1760169732556,0.87601268,3772.9,3771.1,0.4349]
[1760169732758,0.59721671,3773.4,3771.4,0.6336]
[1760169732912,0.59721671,3773.4,3772.2,2.6509688]
[1760169733119,0.59721671,3773.4,3772.4,2.65083236]
[1760169733434,0.59721671,3773.4,3772.5,0.4349]
[1760169733636,0.59721671,3773.4,3772.7,2.65057817]
[1760169733947,0.59721671,3773.4,3772.7,2.65059099]
[1760169734133,0.59721671,3773.4,3773.3,2.65020009]
[1760169734442,0.59721671,3773.4,3772.8,0.4349]
[1760169734647,0.59721671,3773.4,3772.2,0.4349]
[1760169734847,0.59721671,3773.4,3771.8,0.4349]
[1760169735049,0.4603,3773.3,3771.8,0.4349]
[1760169735217,0.4603,3773.3,3771.9,2.65118375]
[1760169735413,0.4603,3773.3,3771.8,0.4349]
[1760169735414,0.4603,3773.3,3770.7,4.92]
[1760169735614,0.4603,3773.2,3771.4,2.65153149]
[1760169735827,0.4603,3773.2,3771.5,2.65145403]
[1760169736030,0.4603,3773.2,3771.6,2.65133694]
[1760169736031,0.132,3771.9,3771.6,2.65133694]
[1760169736226,1.92,3773.1,3771.6,2.65138299]
[1760169736426,0.6336,3772.7,3770.7,4.92]
[1760169736668,0.6336,3772.5,3770.8,2.67847659]
[1760169736949,0.59721671,3773.4,3770.7,4.92]
[1760169736950,0.6336,3772.3,3770.7,4.92]
[1760169737152,0.6336,3772.0,3770.7,4.92]
[1760169737349,0.6336,3771.8,3770.7,4.92]
[1760169737537,0.6336,3771.6,3770.7,4.92]
[1760169737748,0.6336,3771.2,3770.7,4.92]
[1760169737931,1.92,3770.8,3770.7,4.92]
[1760169738135,0.6336,3771.4,3770.7,4.92]
[1760169738331,1.92,3770.8,3770.7,4.92]
[1760169738538,1.0939,3770.8,3770.7,4.92]
[1760169738720,3.0139,3770.8,3770.7,4.92]
[1760169738922,5.66585714,3770.8,3770.7,4.92]
[1760169741787,5.66585714,3770.8,3770.7,4.8385]
[1760169742148,4.57223848,3770.4,3770.3,0.002]
[1760169742348,5.20583848,3770.4,3770.3,0.002]
[1760169742571,5.66163848,3770.4,3770.3,0.002]
[1760169742754,6.07776895,3770.4,3770.3,0.002]
[1760169743433,3.52416895,3770.4,3770.3,0.002]
[1760169743644,4.15776895,3770.4,3770.3,0.002]
[1760169744031,1.50553047,3770.4,3770.3,0.002]
[1760169744253,0.41613047,3770.4,3770.3,0.002]
[1760169744453,0.87193047,3770.4,3770.3,0.002]
[1760169745242,0.4558,3771.1,3770.3,0.002]
[1760169745441,0.87184465,3771.1,3770.3,0.002]
[1760169746137,0.4558,3771.1,3770.3,0.002]
[1760169746552,2.65126689,3771.8,3770.3,0.002]
[1760169746733,0.4558,3771.5,3770.3,0.002]
[1760169747146,0.4558,3771.5,3770.3,1.002]
[1760169748782,2.3758,3771.4,3770.3,1.002]
[1760169748943,0.4558,3771.3,3770.3,1.002]
[1760169749837,0.41597415,3771.4,3770.4,0.02126174]
[1760169750039,0.132,3770.4,3770.3,3.65430883]
[1760169750267,0.132,3770.4,3770.3,4.08920883]
[1760169750674,0.132,3770.4,3770.3,3.65430883]
[1760169750836,0.132,3770.4,3770.3,1.002]
[1760169752468,0.132,3770.4,3770.3,4.08920883]
[1760169753039,0.132,3770.4,3770.3,3.65430883]
[1760169753245,0.132,3770.4,3770.3,4.08920883]
[1760169753442,2.65090853,3772.3,3770.3,4.08920883]
[1760169753443,0.4558,3772.7,3771.2,2.65167199]
[1760169753637,0.4558,3772.7,3770.3,1.4369]
[1760169753638,0.41594885,3772.2,3771.4,2.65151434]
[1760169753837,0.001,3773.2,3770.6,2.65204582]
[1760169753838,0.001,3773.2,3771.5,0.01169321]
[1760169754045,0.001,3773.2,3772.4,2.65081566]
[1760169754238,0.4558,3773.1,3771.1,0.4349]
[1760169754483,0.132,3771.7,3771.6,2.65139463]
[1760169754649,0.4558,3773.1,3772.1,2.65104184]
[1760169754852,0.4558,3773.1,3772.2,0.02241664]
[1760169755049,0.001,3773.2,3772.4,2.65082984]
[1760169755286,0.001,3773.2,3772.5,0.02241248]
[1760169755482,0.001,3773.2,3772.2,2.65095448]
[1760169755644,0.001,3773.2,3772.3,0.0224095]
[1760169755993,0.001,3773.2,3772.3,2.65090263]
[1760169756197,0.132,3772.4,3772.3,2.65090263]
[1760169756505,0.132,3772.8,3772.7,2.65062157]
[1760169756679,0.001,3773.2,3772.7,2.65062157]
[1760169756680,0.001,3773.2,3773.1,2.65034056]
[1760169756862,0.59721671,3773.4,3773.3,3.28380009]
[1760169757192,0.59721671,3773.4,3773.3,3.73680009]
[1760169757693,0.59721671,3773.4,3773.3,3.10320009]
[1760169758183,0.59721671,3773.4,3773.3,3.73680009]
[1760169758393,0.59721671,3773.4,3773.3,3.10320009]
[1760169758599,0.59721671,3773.4,3773.3,2.65020009]
[1760169758763,0.59721671,3773.4,3773.3,3.10320009]
[1760169759171,0.59721671,3773.4,3772.8,0.453]
[1760169759381,0.59721671,3773.4,3773.3,2.65020009]
[1760169759580,0.59721671,3773.4,3773.3,3.10320009]
[1760169759807,0.59721671,3773.4,3772.5,0.453]
[1760169760271,0.59721671,3773.4,3773.3,2.65020009]
[1760169760467,0.59721671,3773.4,3770.4,2.65218668]
[1760169760802,0.59721671,3773.4,3771.8,0.453]
[1760169760998,0.59721671,3773.4,3772.0,1.92]
[1760169761320,0.59721671,3773.4,3771.1,2.65174617]
[1760169761321,2.65041559,3773.0,3772.1,0.02651042]
[1760169761476,0.4627,3772.9,3770.7,0.453]
[1760169761673,1.92,3772.7,3770.7,0.453]
[1760169761919,1.92,3772.7,3770.3,1.002]
[1760169761920,0.4627,3772.6,3770.3,1.002]
[1760169762069,3.11344992,3772.6,3770.3,1.455]
[1760169762276,0.6336,3772.4,3770.3,1.455]
[1760169762474,2.5536,3772.2,3770.4,2.65223103]
[1760169762770,2.65108506,3772.1,3770.3,1.455]
[1760169763022,1.92,3772.0,3770.6,2.65209558]
[1760169763175,0.2173,3771.9,3770.8,2.65194798]
[1760169763371,0.4627,3771.8,3770.5,0.002]
[1760169763916,0.2173,3771.9,3770.5,0.002]
[1760169764114,0.2173,3771.9,3770.6,2.65203913]
[1760169764411,0.2173,3771.9,3770.5,0.02852168]
[1760169764412,0.4627,3771.8,3770.5,0.002]
[1760169764819,0.4627,3771.8,3770.6,2.6520978]
[1760169764971,0.2173,3771.9,3770.5,0.002]
[1760169765176,0.4627,3771.7,3770.5,0.002]
[1760169765402,0.4627,3771.7,3770.5,2.65414926]
[1760169765605,0.4627,3771.7,3770.6,2.65209635]
[1760169765772,0.4627,3771.7,3770.5,0.002]
[1760169766006,2.3827,3771.7,3770.5,0.002]
[1760169766248,0.4627,3771.7,3770.5,0.002]
[1760169766847,1.92,3772.2,3770.5,0.002]
[1760169767033,0.132,3770.6,3770.5,0.002]
[1760169767648,0.2173,3771.8,3770.5,0.002]
[1760169767649,0.4627,3771.1,3770.5,0.002]
[1760169767860,0.4417,3770.6,3770.5,0.002]
[1760169768151,5.6473978,3770.6,3770.5,0.002]
[1760169768723,5.6473978,3770.6,3770.3,1.002]
[1760169768724,3.28583848,3770.4,3770.3,1.002]
[1760169769023,5.20583848,3770.4,3770.3,1.002]
[1760169769219,5.64753848,3770.4,3770.3,1.002]
[1760169769935,3.28597918,3770.2,3770.1,0.002]
[1760169770134,5.20597918,3770.2,3770.1,0.002]
[1760169770311,5.64767918,3770.2,3770.1,0.002]
[1760169771034,6.06370697,3770.2,3770.1,0.002]
[1760169772514,1.49132779,3770.2,3770.1,0.002]
[1760169772910,0.41602779,3770.2,3770.1,0.002]
[1760169773111,0.41602779,3770.2,3769.6,0.002]
[1760169773112,0.85772779,3770.2,3769.6,0.002]
[1760169773306,0.85772779,3770.2,3768.5,1.232]
[1760169773307,0.2296,3769.7,3769.5,1.226]
[1760169773530,0.4417,3769.6,3769.5,1.226]
[1760169773970,1.0753,3769.6,3769.5,1.226]
[1760169774169,5.64810135,3769.6,3769.5,1.226]
[1760169774331,6.06424966,3769.6,3769.5,1.226]
[1760169774666,6.06424966,3769.6,3769.5,1.198]
[1760169775480,2.5536,3769.5,3769.0,1e-08]
[1760169775657,5.20675327,3769.1,3769.0,1e-08]
[1760169776039,5.64405327,3769.1,3769.0,1e-08]
[1760169778467,3.09045327,3769.1,3769.0,1e-08]
[1760169778886,0.4373,3769.1,3769.0,1e-08]
[1760169779850,5.64405327,3769.1,3769.0,1e-08]
[1760169780239,2.9909,3769.1,3769.0,1e-08]
[1760169780692,2.3573,3769.1,3769.0,1e-08]
[1760169781006,5.01045327,3769.1,3769.0,1e-08]
[1760169781173,5.64405327,3769.1,3769.0,1e-08]
[1760169781369,2.3573,3769.1,3769.0,1e-08]
[1760169781696,0.4373,3769.1,3769.0,1e-08]
[1760169781897,3.31963122,3769.7,3769.0,1e-08]
[1760169782065,0.6669,3769.7,3769.0,1e-08]
[1760169782267,2.65315327,3769.1,3769.0,1e-08]
[1760169782602,5.20675327,3769.1,3769.0,1e-08]
[1760169782901,5.64405327,3769.1,3769.0,1e-08]
[1760169783097,2.9909,3769.1,3769.0,1e-08]
[1760169783611,1.92,3769.1,3769.0,1e-08]
[1760169783912,0.4373,3769.7,3769.0,1e-08]
[1760169784065,0.4373,3770.3,3769.3,2.65297727]
[1760169784265,0.132,3769.3,3769.2,2.65308288]
[1760169784490,0.132,3769.3,3769.1,2.65315327]
[1760169784491,0.4417,3770.9,3769.0,1e-08]
[1760169784773,0.669,3770.9,3769.0,1e-08]
[1760169784977,0.4396,3770.3,3769.0,1e-08]
[1760169786299,2.5536,3770.2,3769.0,1e-08]
[1760169786502,3.28600457,3770.2,3769.0,1e-08]
[1760169786707,0.6336,3770.0,3769.0,1e-08]
[1760169786871,2.5536,3769.8,3769.0,1e-08]
[1760169787209,1.92,3769.7,3769.0,1e-08]
[1760169787378,2.3686,3769.7,3769.0,1e-08]
[1760169787584,0.2157,3769.9,3769.0,0.01006818]
[1760169787909,0.001,3770.4,3769.0,0.01006818]
[1760169788200,0.001,3770.4,3769.0,1e-08]
[1760169788201,2.65237918,3770.2,3769.0,1e-08]
[1760169788404,2.3686,3770.3,3769.0,2.65322303]
[1760169788405,0.6336,3770.1,3769.0,2.65322303]
[1760169788622,0.001,3770.4,3769.0,1e-08]
[1760169788786,0.001,3770.4,3769.1,0.4421]
[1760169789185,0.001,3770.4,3769.8,2.65259963]
[1760169789418,0.001,3770.4,3769.5,2.65281735]
[1760169789687,0.001,3770.4,3769.8,2.65265226]
[1760169789917,0.001,3770.4,3769.7,2.65270628]
[1760169790089,0.001,3770.4,3769.7,2.65270334]
[1760169790605,0.001,3770.4,3769.1,0.4421]
[1760169790798,0.6336,3770.0,3769.0,1e-08]
[1760169790998,2.65296826,3769.4,3769.0,1e-08]
[1760169791200,0.6336,3769.9,3769.0,1e-08]
[1760169791201,0.2157,3769.1,3769.0,1e-08]
[1760169791609,0.2157,3769.1,3768.8,1.232]
[1760169791610,0.6336,3768.9,3768.8,1.21100001]
[1760169791795,0.4441,3768.9,3768.8,1.21100001]
[1760169792619,0.41617772,3769.4,3768.8,1.21100001]
[1760169792800,2.5821,3769.6,3768.8,1.21100001]
[1760169792801,0.4486,3769.6,3768.8,1.21100001]
[1760169792998,0.4462,3770.0,3768.8,1.21100001]
[1760169793507,0.6598,3769.9,3768.8,1.21100001]
[1760169793709,2.6528154,3769.6,3768.8,1.21100001]
[1760169793922,0.4441,3769.5,3768.8,1.21100001]
[1760169794092,3.09700281,3769.5,3768.8,1.21100001]
[1760169794420,2.65266589,3769.8,3768.8,1.21100001]
[1760169794421,0.4441,3769.4,3768.8,1.21100001]
[1760169794626,2.5536,3769.2,3768.8,1.21100001]
[1760169794999,3.28689406,3768.9,3768.8,1.21100001]
[1760169795323,5.65099406,3768.9,3768.8,1.21100001]
[1760169795526,5.65099406,3768.9,3768.8,1.21300001]
[1760169795527,5.01739406,3768.9,3768.8,1.21300001]
[1760169795688,5.65099406,3768.9,3768.8,1.21300001]
[1760169796112,6.06725038,3768.9,3768.8,1.20850001]
[1760169796432,6.06725038,3768.9,3768.5,1.232]
[1760169796433,4.57336446,3768.8,3768.5,1.232]
[1760169796922,5.01306446,3768.8,3768.5,1.232]
[1760169797327,4.57343487,3768.7,3768.5,1.232]
[1760169797529,5.01313487,3768.7,3768.5,1.232]
[1760169797757,4.57371653,3768.3,3768.2,3.69]
[1760169798074,5.01341653,3768.3,3768.2,3.5512]
[1760169798376,2.3597,3768.3,3768.2,3.5512]
[1760169798720,5.01341653,3768.3,3768.2,3.5512]
[1760169801762,5.01341653,3768.3,3768.1,1e-08]
[1760169801763,4.57378695,3768.2,3768.1,1e-08]
[1760169802272,5.01348695,3768.2,3768.1,1e-08]
[1760169802457,5.42984739,3768.2,3768.1,1e-08]
[1760169803165,3.50984739,3768.2,3768.1,1e-08]
[1760169806451,3.09348695,3768.2,3768.1,1e-08]
[1760169808263,2.65378695,3768.2,3768.1,1e-08]
[1760169808478,0.4397,3768.2,3768.1,1e-08]
[1760169808881,2.65342046,3768.8,3768.1,1e-08]
[1760169809079,0.4397,3768.9,3768.1,1e-08]
[1760169809449,2.65280325,3769.6,3768.2,2.6537271]
[1760169809450,0.4397,3769.5,3768.2,2.6537271]
[1760169809649,0.4397,3769.5,3768.3,2.65371191]
[1760169809888,0.4397,3769.5,3768.1,1e-08]
[1760169810451,0.4397,3769.5,3768.4,2.65359962]
[1760169810647,0.4397,3769.5,3769.1,1.23]
[1760169810885,0.4397,3769.4,3769.1,1.23]
[1760169811083,0.4397,3769.3,3769.1,1.23]
[1760169811393,0.4397,3769.2,3769.1,1.23]
[1760169812990,3.09278288,3769.2,3769.1,1.23]
[1760169813459,5.01278288,3769.2,3769.1,1.23]
[1760169813866,5.42899557,3769.2,3769.1,1.23]
[1760169814862,2.65378695,3768.2,3768.1,0.00200001]
[1760169815192,4.57378695,3768.2,3768.1,0.00200001]
[1760169815391,5.01348695,3768.2,3768.1,0.00200001]
[1760169815593,19.81144274,3768.2,3768.1,0.00200001]
[1760169815791,5.01348695,3768.2,3768.1,0.00200001]
[1760169815964,5.01348695,3768.2,3768.0,3.692]
[1760169815965,2.65406868,3767.8,3765.8,0.002]
[1760169816306,4.57406868,3767.8,3765.8,0.002]
[1760169816487,5.01376868,3767.8,3765.8,0.002]
[1760169816695,4.57413912,3767.7,3767.6,1e-08]
[1760169817007,2.65435048,3767.4,3765.8,0.002]
[1760169817313,4.57484376,3766.7,3765.8,0.002]
[1760169817468,5.01454376,3766.7,3765.8,0.002]
[1760169818388,2.65505522,3766.4,3765.8,0.002]
[1760169818637,5.01475522,3766.4,3765.8,0.002]
[1760169819716,5.43136598,3766.4,3765.8,0.002]
[1760169824420,4.57512572,3766.3,3766.2,1e-08]
[1760169824926,5.01482572,3766.3,3766.2,1e-08]
[1760169825092,4.57554876,3765.7,3765.6,1e-08]
[1760169825592,5.01304876,3765.7,3765.6,1e-08]
[1760169825793,5.42981029,3765.7,3765.6,1e-08]
[1760169826004,5.01304876,3765.7,3765.6,1e-08]
[1760169826725,3.09304876,3765.7,3765.6,1e-08]
[1760169829837,3.5096636,3765.7,3765.6,1e-08]
[1760169830804,3.5096636,3765.7,3765.6,0.00200001]
[1760169831401,0.85411484,3765.7,3765.6,0.00200001]
[1760169831828,3.5096636,3765.7,3765.6,0.00200001]
[1760169832016,0.4375,3765.7,3765.6,0.00200001]
[1760169833027,5.01304876,3765.7,3765.6,0.00200001]
[1760169833238,0.4375,3765.7,3765.6,0.00200001]
[1760169834016,0.41653184,3766.0,3765.6,0.00200001]
[1760169834224,13.15385108,3768.9,3765.6,0.00200001]
[1760169834225,0.4332,3766.8,3765.7,2.65554876]
[1760169834549,0.4311,3766.7,3765.6,0.00200001]
[1760169834963,2.3511,3766.7,3765.6,0.00200001]
[1760169835166,0.226,3766.9,3766.2,2.65512921]
[1760169835458,0.4509,3767.6,3766.0,0.1095]
[1760169835658,0.2084,3767.7,3766.6,2.65486295]
[1760169835950,0.41646609,3767.9,3766.0,0.1095]
[1760169835951,0.2108,3767.9,3766.0,0.1095]
[1760169836131,0.132,3766.2,3765.9,0.4746]
[1760169836449,0.132,3766.2,3766.1,4.57526672]
[1760169836648,0.132,3766.2,3766.1,3.12986672]
[1760169836950,0.2108,3767.9,3766.1,0.4746]
[1760169837150,0.4461,3767.8,3766.1,3.12979797]
[1760169837374,0.4461,3767.8,3766.9,2.65467601]
[1760169837556,0.4461,3767.8,3766.1,0.4746]
[1760169837726,0.4461,3767.8,3765.6,0.00200001]
[1760169838046,1.92,3767.4,3766.3,2.65512094]
[1760169838251,0.4461,3767.3,3766.3,2.65512094]
[1760169838416,0.4461,3767.2,3766.2,2.65518558]
[1760169839229,0.4461,3767.2,3765.6,0.00200001]
[1760169839618,2.65471604,3766.9,3765.6,0.00200001]
[1760169839820,3.10064335,3767.2,3765.6,0.00200001]
[1760169839821,2.65491403,3766.7,3765.6,0.00200001]
[1760169840049,2.65485328,3766.7,3765.6,0.00200001]
[1760169840252,0.4461,3766.6,3765.6,0.00200001]
[1760169840453,1.92,3766.4,3765.6,0.00200001]
[1760169840752,0.4461,3766.6,3765.6,0.00200001]
[1760169840934,1.92,3767.6,3765.6,0.00200001]
[1760169841139,0.4461,3766.3,3765.6,0.00200001]
[1760169842068,3.10122993,3766.3,3765.6,0.00200001]
[1760169842269,1.92,3766.2,3765.6,0.00200001]
[1760169842452,2.3661,3766.3,3765.6,0.00200001]
[1760169842654,1.92,3765.7,3765.6,0.00200001]
[1760169843173,2.3661,3765.7,3765.6,0.00200001]
[1760169843673,2.78270672,3765.7,3765.6,0.00200001]
[1760169843840,5.43825548,3765.7,3765.6,0.00200001]
[1760169845733,3.01870242,3765.7,3765.3,0.002]
[1760169845934,1.92,3765.4,3764.8,6.44291833]
[1760169846173,4.57611304,3764.9,3764.8,1e-08]
[1760169846376,2.6563247,3764.6,3764.5,1e-08]
[1760169846543,4.5763247,3764.6,3764.5,1e-08]
[1760169846744,4.57639527,3764.5,3764.2,1e-08]
[1760169846950,4.5765364,3764.3,3764.2,1e-08]
[1760169847395,5.0191364,3764.3,3764.2,1e-08]
[1760169850812,2.6569599,3763.7,3763.6,1e-08]
[1760169850969,4.5769599,3763.7,3763.6,1e-08]
[1760169851167,5.0173599,3763.7,3763.6,1e-08]
[1760169851601,5.4343166,3763.7,3763.6,1e-08]
[1760169856415,5.76925284,3763.7,3763.6,1e-08]
[1760169856907,5.0173599,3763.7,3763.6,1e-08]
[1760169857425,5.43430464,3763.7,3763.6,1e-08]
[1760169860182,6.07145668,3763.7,3763.6,1e-08]
[1760169860921,6.07145668,3763.7,3759.2,2.87839284]
[1760169860922,2.58840204,3763.6,3759.3,0.00700713]
[1760169861104,2.58840204,3763.6,3760.7,2.6590169]
[1760169861105,2.6582502,3761.9,3760.7,2.6590169]
[1760169861292,0.6561,3761.8,3760.8,2.66134674]
[1760169861494,1.92,3761.5,3760.8,0.0024]
[1760169861822,1.92,3761.5,3759.5,0.4432]